Cogmind - Beta 14 @@@ ROGUE MODE // 2024.09.02 @ 19:51:43 Player: jimmyl Result: Destroyed by G-67 Veteran with Plasma Rifle Performance ------------- Evolutions (6) 3000 Regions Visited (14) 2800 Robots Destroyed (136) 680 Value Destroyed (4759) 4759 Prototype IDs (28) 560 Alien Tech Used (0) 0 Bonus (2391) 2391 TOTAL SCORE: 14190 Bonus ------- High Alert Combat Kills 33 Follower Combat Kills 1223 Registered with UFD 300 Met Warlord at Base 500 MAIN.C Attacked Warlord 500 Friendly Fire -165 Cogmind --------- Core Integrity 0/1150 Matter 300/300 Energy 100/100 System Corruption 5% Temperature Cool (0) Movement Rolling (115) Ox1 Location -4/Factory Parts ------- > --- POWER (2) -------- (None) > --- PROPULSION (3) --- Compact Wheel Compact Wheel > --- UTILITY (9) ------ Advanced Heat Sink High-capacity Storage Unit Advanced Visual Processing Unit Advanced Targeting Computer > --- WEAPON (5) ------- (None) > --- INVENTORY (20) --- BFG-9k Vortex Edition DRS Beacon (Ready) Peak State ------------ > --- POWER ------------ Improved Deuterium Engine Light Quantum Reactor > --- PROPULSION ------- Medium Treads Medium Treads Medium Treads > --- UTILITY ---------- Advanced Heat Sink High-capacity Storage Unit Advanced Visual Processing Unit Advanced Targeting Computer Improved Medium Armor Plating Graphene Brace Advanced Hacking Suite Advanced Drone Bay > --- WEAPON ----------- Vortex Cannon Vortex Driver Great Axe > --- INVENTORY -------- Compact Wheel Active Sensor Suite Transmission Jammer Vortex Cannon Vortex Driver BFG-9k Vortex Edition Heavy Battle Rifle Heavy Battle Rifle Vortex Catalyst Activator Vortex Trap DRS Beacon Botcube [Rating: 103] Favorites ----------- Power Improved Deuterium Engine Engine Improved Deuterium Engine Power Core Light Nuclear Core Reactor Light Quantum Reactor Propulsion Medium Treads Treads Medium Treads Leg Improved Aluminum Leg Wheel Compact Wheel Utility Advanced Targeting Computer Device Graphene Brace Storage High-capacity Storage Unit Processor Advanced Targeting Computer Hackware Advanced Hacking Suite Protection Improved Medium Armor Plating Weapon Great Axe Energy Gun Advanced Beam Rifle Energy Cannon Vortex Cannon Ballistic Gun Gauss Rifle Launcher Grenade Launcher Special Weapon Junk Cannon Slashing Weapon Great Axe Build | -11 -10 -10 -9 -8 -7 -7 -7 -7 -5 -5 -5 -5 -4 -4 ------- Run | Yrd Mat Min Mat Mat Fac Sto Rec Scr Fac Upp Upp War Pro Fac Slots Evolved 12 | . . . 2 2 2 . . . 4 . . . . 2 Power 1 | . . . 1 . . . . . . . . . . . Propulsion 1 | . . . . 1 . . . . . . . . . . Utility 7 | . . . 1 1 2 . . . 3 . . . . . Weapon 3 | . . . . . . . . . 1 . . . . 2 Parts Attached 131 | . 5 1 13 27 18 21 5 9 2 8 3 4 2 13 Power 18 | . 1 . 3 3 2 3 . . . 2 1 1 . 2 Engine 15 | . 1 . 3 3 2 2 . . . 2 1 . . 1 Core 1 | . . . . . . 1 . . . . . . . . Reactor 2 | . . . . . . . . . . . . 1 . 1 Propulsion 37 | . 2 . 4 7 4 8 2 5 . . 1 1 . 3 Treads 25 | . . . 2 7 3 5 2 5 . . . 1 . . Leg 4 | . 2 . 2 . . . . . . . . . . . Wheel 8 | . . . . . 1 3 . . . . 1 . . 3 Hover . | . . . . . . . . . . . . . . . Flight . | . . . . . . . . . . . . . . . Utility 30 | . 2 . 3 6 4 3 1 2 2 1 1 . 2 3 Device 21 | . 1 . 2 5 3 3 1 1 . 1 . . 1 3 Storage 2 | . 1 . . . . . . 1 . . . . . . Processor 3 | . . . . 1 1 . . . . . . . 1 . Hackware 1 | . . . . . . . . . 1 . . . . . Protection 3 | . . . 1 . . . . . 1 . 1 . . . Artifact . | . . . . . . . . . . . . . . . Weapon 46 | . . 1 3 11 8 7 2 2 . 5 . 2 . 5 Energy Gun 19 | . . . 3 6 1 5 2 . . 2 . . . . Energy Cannon 4 | . . . . . . . . . . . . 2 . 2 Ballistic Gun 9 | . . . . 1 5 1 . . . . . . . 2 Ballistic Cannon . | . . . . . . . . . . . . . . . Launcher 10 | . . 1 . 4 2 1 . . . 1 . . . 1 Special Weapon 2 | . . . . . . . . 1 . 1 . . . . Impact Weapon . | . . . . . . . . . . . . . . . Slashing Weapon 2 | . . . . . . . . 1 . 1 . . . . Piercing Weapon . | . . . . . . . . . . . . . . . Special Melee Weapon . | . . . . . . . . . . . . . . . Unidentified Prototypes 7 | . . . 1 1 . 1 . 1 . . . 2 . 1 Parts Lost 70 | . 1 . 6 15 8 11 2 . . 4 2 . . 21 Power 17 | . 1 . 2 3 2 2 1 . . 2 . . . 4 Propulsion 22 | . . . 2 5 3 6 1 . . . 1 . . 4 Utility 14 | . . . 2 3 1 1 . . . 2 . . . 5 Weapon 17 | . . . . 4 2 2 . . . . 1 . . 8 Highest Loss Streak 16 | . 1 . 2 7 3 7 2 . . 3 1 . . 16 To Critical Strikes . | . . . . . . . . . . . . . . . Average Slot Usage (%) 81 | . 93 100 85 77 86 79 94 79 70 77 77 81 88 61 Engine 6 | . 12 14 12 10 6 5 4 . . 3 10 10 5 2 Core 1 | . . . . . . . 7 7 5 1 . . . . Treads 16 | . . . . 21 21 14 20 22 17 17 13 16 17 8 Leg 2 | . 28 28 19 . . . . . . . . . . . Device 17 | . 9 14 11 11 22 18 23 23 17 16 17 17 11 9 Storage 6 | . 14 14 11 9 7 7 7 7 5 5 5 5 5 5 Processor 9 | . . . . 7 14 15 15 15 11 7 5 5 10 10 Hackware 1 | . . . . . . . . . 3 5 5 5 5 2 Protection 2 | . . . 9 . . . . . 1 5 5 5 5 2 Energy Gun 5 | . 28 17 22 15 . 8 9 . . 2 . 2 . . Energy Cannon 1 | . . . . . . . . . . . . 3 11 5 Ballistic Gun 1 | . . . . . 10 4 4 . . . . . . 2 Special Weapon 1 | . . . . . . . . 2 5 3 4 . . . Slashing Weapon 1 | . . . . . . . . . . 1 5 5 5 3 Peak Build Rating 103 | . 11 11 22 27 44 49 45 57 67 76 80 100 103 95 Average Rating 52 | . 9 11 19 22 40 39 42 45 62 70 76 77 92 66 On Entrance 43 | 6 6 11 11 20 26 40 44 33 57 67 76 65 100 91 Naked Turns . | . . . . . . . . . . . . . . . Heaviest Build 118 | 13 30 32 39 40 41 43 42 62 82 98 98 116 118 109 Greatest Support 84 | 20 26 26 46 66 62 60 62 84 84 84 84 84 84 84 Greatest Overweight (x) 18 | . 1 1 2 1 3 10 . . . 1 5 1 1 18 Average Overweight (x) . | . . 1 1 . . . . . . . 1 . 1 1 Largest Inventory Capacity 20 | . 15 15 15 15 15 15 15 20 20 20 20 20 20 20 Average Capacity 17 | . 14 15 15 15 15 15 15 17 20 20 20 20 20 20 Most Carried 20 | . 9 9 14 15 15 14 11 16 16 17 14 20 20 20 Average Carried 13 | . 7 9 12 12 12 11 10 13 16 14 13 14 20 15 Final Capacity 20 | 8 15 15 15 15 15 15 15 20 20 20 20 20 20 20 Final Carried 20 | 6 9 9 12 15 11 10 11 16 16 14 12 20 20 7 Class Distribution -------------------- 60% | Mutant 36% | Scavenger-Mutant Dominant Class ---------------- Mutant | -10/Materials Mutant | -10/Mines Mutant | -9/Materials Mutant | -8/Materials Scavenger-Mutant | -7/Factory Scavenger-Mutant | -7/Storage Scavenger-Mutant | -7/Recycling Mutant | -7/Scraptown Mutant | -5/Factory Mutant | -5/Upper Caves Mutant | -5/Upper Caves Mutant | -5/Warlord Scavenger-Mutant | -4/Proximity Caves Scavenger-Mutant | -4/Factory Resources | -11 -10 -10 -9 -8 -7 -7 -7 -7 -5 -5 -5 -5 -4 -4 ----------- Run | Yrd Mat Min Mat Mat Fac Sto Rec Scr Fac Upp Upp War Pro Fac Matter Collected 3022 | 189 61 14 78 437 338 404 92 144 10 421 276 240 169 149 Remotely . | . . . . . . . . . . . . . . . Salvage Created 5221 | . 166 20 645 985 545 866 408 168 62 360 88 . 110 798 Parts 292 | . 3 4 38 70 43 53 17 5 1 11 . . 6 41 Haulers Intercepted 4 | . . . . 1 . 3 . . . . . . . . Recyclers Shooed 6 | . . . . 1 1 1 . . . . . . . 3 Parts Field Recycled . | . . . . . . . . . . . . . . . Retrieved Matter . | . . . . . . . . . . . . . . . Parts Self-Destructed 38 | . . . . . . . . 5 . 3 . . 30 . Prevented 1 | . . . . . . . . . . . 1 . . . Kills | -11 -10 -10 -9 -8 -7 -7 -7 -7 -5 -5 -5 -5 -4 -4 ------- Run | Yrd Mat Min Mat Mat Fac Sto Rec Scr Fac Upp Upp War Pro Fac Combat Hostiles Destroyed 101 | . 4 3 14 24 12 17 4 . 1 9 2 . . 11 Guns 62 | . 3 . 14 13 7 17 4 . . 1 . . . 3 Cannons 10 | . . . . . . . . . 1 2 . . . 7 AOE 25 | . . 3 . 11 5 . . . . 5 . . . 1 Classes Destroyed 19 | . 1 2 3 4 2 1 . . . 1 1 . 2 2 Worker 9 | . . 1 1 2 . 1 . . . . . . . 4 Builder 7 | . . . . 3 2 . . . . . . . . 2 Tunneler 1 | . . . . . . . . . . . . . . 1 Hauler 4 | . . . . 1 . 3 . . . . . . . . Recycler 8 | . . . 1 1 1 1 1 . . . . . . 3 Watcher 5 | . . . 1 2 1 1 . . . . . . . . Swarmer 24 | . . 3 4 7 5 . . . . 5 . . . . Grunt 34 | . 4 . 5 11 2 9 . . . . . . . 3 Duelist 1 | . . . . 1 . . . . . . . . . . Protector 2 | . . . . . . 2 . . . . . . . . Sentry 20 | . . . 5 4 1 5 4 . 1 . . . . . Specialist 2 | . . . . . 2 . . . . . . . . . Hunter 3 | . . . . . . . . . . . 1 . . 2 Programmer 9 | . . . . . 1 1 . . . 2 1 . . 4 Heavy 2 | . . . . 1 1 . . . . . . . . . Behemoth 1 | . . . . . . . . . . . . . . 1 Scrapoid 2 | . . . . . . . . . . . . . 1 1 Decomposer 2 | . . . . . . . . . . 2 . . . . Samaritan 1 | . . . . . . . . . . . . . 1 . Thug 1 | . . . . . . . . . . 1 . . . . Savage 1 | . . . . . . . . . . 1 . . . . Best Kill Streak 11 | . 2 4 4 11 6 3 2 . 1 5 1 . . 8 Combat Bots Only 5 | . 2 3 4 4 3 3 1 . 1 5 1 . . 3 Max Kills in Single Turn 4 | . 1 4 1 2 3 1 1 . 1 2 1 . 1 2 Gunslinging . | . . . . . . . . . . . . . . . Exploded 3 | . . 3 . 2 2 . . . . 2 . . . 1 Melee . | . . . . . . . . . . . . . . . Uniques/NPCs Destroyed . | . . . . . . . . . . . . . . . Combat | -11 -10 -10 -9 -8 -7 -7 -7 -7 -5 -5 -5 -5 -4 -4 -------- Run | Yrd Mat Min Mat Mat Fac Sto Rec Scr Fac Upp Upp War Pro Fac Hostile Shots Fired 1039 | . 29 3 92 168 104 217 117 . 4 60 34 . . 211 Missed 301 | . 7 1 18 43 29 61 46 . 3 18 11 . . 64 Damage Taken 11599 | . 259 30 811 2228 1272 1595 539 . 23 913 449 97 26 3357 Core 2365 | . 59 . 152 380 116 334 73 . . 60 38 . . 1153 Absorbed by Shields 178 | . 63 12 103 . . . . . . . . . . . Redirected to Shielding 100 | . . . 100 . . . . . . . . . . . Ignored by Resistances 71 | . . . . . . . . . . 71 . . . . Regen/Repaired (Parts) 97 | . . . . . . . . . . . . 97 . . Core Remaining (%) 63 | 100 . 76 62 30 . . . 25 . . . . 90 . Volleys Fired 338 | . 17 1 43 77 43 71 19 . 2 18 6 . 1 40 Largest 2 | . 2 1 2 2 2 2 2 . 1 2 1 . 2 2 Hottest 150 | . 90 30 122 122 108 150 138 . . 132 . . 150 150 Shots Fired 542 | . 34 1 86 128 56 114 38 . 2 20 6 . 2 55 Gun 447 | . 34 . 86 109 46 113 38 . . 3 . . . 18 Cannon 35 | . . . . . . . . . . . . . 2 33 Launcher 39 | . . 1 . 19 10 1 . . . 4 . . . 4 Special 21 | . . . . . . . . . 2 13 6 . . . Kinetic 99 | . . . . 6 42 24 9 . . . . . . 18 Thermal 348 | . 34 . 86 103 4 89 29 . . 3 . . . . Explosive 35 | . . 1 . 19 10 1 . . . 4 . . . . Electromagnetic . | . . . . . . . . . . . . . . . Impact 21 | . . . . . . . . . 2 13 6 . . . Entropic 39 | . . . . . . . . . . . . . 2 37 Robot Hit Streak 33 | . 11 12 20 14 27 33 26 . 15 18 5 . 1 10 Robot Miss Streak 10 | . 2 . 10 6 3 5 2 . . 2 1 . 1 2 Penetration Max 1 | . . . . . 1 1 1 . . . . . . 1 Secondary Targets 7 | . . . 3 1 . 3 . . . . . . . . Max Gunslinging Chain 1 | . . . 1 1 . 1 . . . . . . . . Shots Hit Robots 410 | . 27 1 51 83 49 92 33 12 2 12 5 . 2 41 Core Hits 327 | . 8 4 19 59 36 129 32 . 1 14 . . 1 24 Critical Kills 2 | . . . . . . . . . 1 1 . . . . Critical Parts Destroyed 3 | . . . . . . . . . 1 2 . . . . Critical Strikes 35 | . 2 . 9 7 . . 1 . 2 3 . . . 11 Burn 19 | . 2 . 9 7 . . 1 . . . . . . . Smash 5 | . . . . . . . . . 2 3 . . . . Sunder 11 | . . . . . . . . . . . . . . 11 Melee Attacks 22 | . . . . . . . . 12 . 2 . 6 1 1 Impact . | . . . . . . . . . . . . . . . Slashing 22 | . . . . . . . . 12 . 2 . 6 1 1 Piercing . | . . . . . . . . . . . . . . . Sneak Attacks 4 | . . . . . . . . . . 2 . . 1 1 Combat Hostiles . | . . . . . . . . . . . . . . . Follow-up Attacks . | . . . . . . . . . . . . . . . Damage Inflicted 15753 | . 317 179 1108 2748 1474 2208 710 758 121 1170 392 . 232 4336 Guns 7156 | . 317 . 1098 1544 930 2208 705 . . 23 . . . 331 Cannons 2650 | . . . . . . . . . . . . . 136 2514 Explosions 3735 | . . 171 . 1202 544 . . . . 416 . . . 1402 Melee 1120 | . . . . . . . . 758 . 177 . . 96 89 Ramming 25 | . . 8 10 2 . . 5 . . . . . . . Kinetic 1689 | . . . . 103 797 326 132 . . . . . . 331 Thermal 5536 | . 317 . 1098 1441 133 1882 573 . . 23 . . . 69 Explosive 2333 | . . 171 . 1202 544 . . . . 416 . . . . Electromagnetic . | . . . . . . . . . . . . . . . Impact 1067 | . . . . . . . . . 121 554 392 . . . Slashing 1120 | . . . . . . . . 758 . 177 . . 96 89 Piercing . | . . . . . . . . . . . . . . . Entropic 3983 | . . . . . . . . . . . . . 136 3847 Highest Corruption 10 | . 1 1 . . 3 5 5 . . 10 10 10 . 5 Average Corruption 5 | . 1 1 . . 2 3 5 . . 9 10 10 . 3 Corruption Purged . | . . . . . . . . . . . . . . . Corruption Blocked . | . . . . . . . . . . . . . . . Effects 118 | . 2 . . . 5 20 26 . . 28 27 2 . 8 Message Errors 25 | . 1 . . . . 4 5 . . 7 6 . . 2 Matter Fused 28 | . . . . . 2 3 8 . . 5 7 1 . 2 Heat Flow Errors 22 | . . . . . 2 3 6 . . 4 6 1 . . Energy Discharges 17 | . 1 . . . . 4 3 . . 3 5 . . 1 Parts Rejected 1 | . . . . . . 1 . . . . . . . . Parts Fused 1 | . . . . . . . . . . 1 . . . . Data Loss (minor) 12 | . . . . . . 2 2 . . 6 1 . . 1 Data Loss (major) 3 | . . . . . . 1 . . . . 2 . . . Misfires 1 | . . . . . . . . . . 1 . . . . Alerts 6 | . . . . . 1 . 2 . . 1 . . . 2 Weapon Failures 2 | . . . . . . 2 . . . . . . . . Overload Shots . | . . . . . . . . . . . . . . . Overflow Damage 1141 | . . . . 25 24 . . 266 94 227 152 . 62 291 Projectiles 525 | . . . . . . . . . 94 118 152 . . 161 Explosions 152 | . . . . 25 24 . . . . 22 . . . 81 Melee 464 | . . . . . . . . 266 . 87 . . 62 49 Knockbacks 6 | . . 1 . . . . . . . 1 4 . . . Impact 6 | . . 1 . . . . . . . 1 4 . . . Kinetic . | . . . . . . . . . . . . . . . Secondary . | . . . . . . . . . . . . . . . Self-Inflicted Damage 114 | . . 26 . 6 82 . . . . . . . . . Shots 5 | . . 1 . 1 3 . . . . . . . . . Rammed 3 | . . . . 2 . . 1 . . . . . . . Targets Rammed 6 | . . 2 1 2 . . 1 . . . . . . . Kicked 3 | . . 2 1 . . . . . . . . . . . Crushed . | . . . . . . . . . . . . . . . Highest Temperature 368 | . 354 . 343 368 231 314 128 . . 244 197 199 27 192 Average Temperature 97 | . 151 . 106 96 117 63 60 . . 105 90 104 18 74 Received Heat Transfer 2858 | . 112 . 363 900 192 669 162 . 9 90 126 . . 235 Effects 12 | . 4 . 3 2 . . . . . 3 . . . . Energy Bleed 1 | . 1 . . . . . . . . . . . . . Interference 11 | . 3 . 3 2 . . . . . 3 . . . . Siege Activations . | . . . . . . . . . . . . . . . Robots Corrupted 4 | . . . . . . . . . . 2 2 . . . Combat Hostiles 4 | . . . . . . . . . . 2 2 . . . Parts Fried 1 | . . . . . . . . . . . . . . 1 Impact Corruptions 11 | . . . . . . . . . 1 3 7 . . . Robots Melted 1 | . 1 . . . . . . . . . . . . . Combat Hostiles 1 | . 1 . . . . . . . . . . . . . Parts Melted 26 | . 5 . 9 7 . 2 2 . . . . . . 1 Heat Transferred 9697 | . 1003 . 2664 3219 300 1562 862 . . 37 . . . 50 Parts Sabotaged . | . . . . . . . . . . . . . . . Parts Stolen . | . . . . . . . . . . . . . . . Parts Stripped . | . . . . . . . . . . . . . . . Power Chain Reactions . | . . . . . . . . . . . . . . . Alert | -11 -10 -10 -9 -8 -7 -7 -7 -7 -5 -5 -5 -5 -4 -4 ------- Run | Yrd Mat Min Mat Mat Fac Sto Rec Scr Fac Upp Upp War Pro Fac Peak Influence 578 | . 120 133 307 446 217 335 116 . 53 . . . . 578 Initial 202 | . . 46 51 66 202 91 106 . . . . . . 35 Average 141 | . 53 112 137 280 141 188 45 . 36 . . . . 119 Maximum Alert Level 2 | . . . 1 2 1 1 . . . . . . . 2 Low Security (%) 70 | . 100 100 72 26 58 59 100 . 100 . . . . 88 Level 1 27 | . . . 27 63 41 40 . . . . . . . 3 Level 2 2 | . . . . 9 . . . . . . . . . 7 Level 3 . | . . . . . . . . . . . . . . . Level 4 . | . . . . . . . . . . . . . . . Level 5 . | . . . . . . . . . . . . . . . High Security . | . . . . . . . . . . . . . . . Max Security . | . . . . . . . . . . . . . . . Squads Dispatched 23 | . 1 . . 2 3 8 . . . . . . . 9 Investigation 4 | . . . . . . 2 . . . . . . . 2 Extermination 3 | . . . . . 1 1 . . . . . . . 1 Reinforcement 10 | . 1 . . 2 2 3 . . . . . . . 2 Assault 2 | . . . . . . 2 . . . . . . . . Garrison 4 | . . . . . . . . . . . . . . 4 Intercept . | . . . . . . . . . . . . . . . Searches Triggered . | . . . . . . . . . . . . . . . Construction Impeded 1 | . . . . 1 . . . . . . . . . . Haulers Reinforced 3 | . . . . . . 2 . . . . . . . 1 Active Scanning Responses . | . . . . . . . . . . . . . . . Cargo Convoy Interrupts . | . . . . . . . . . . . . . . . Stealth | -11 -10 -10 -9 -8 -7 -7 -7 -7 -5 -5 -5 -5 -4 -4 --------- Run | Yrd Mat Min Mat Mat Fac Sto Rec Scr Fac Upp Upp War Pro Fac Distress Signals 12 | . . . 2 3 1 3 . . . . . 1 . 2 Communications Jammed 3 | . . . . . . . . . . . . . . 3 Distress Signals 3 | . . . . . . . . . . . . . . 3 Times Spotted 169 | . 7 3 22 33 13 35 5 . 1 9 6 . 4 31 Peak Tracking Total 11 | . 2 3 6 6 4 11 2 . 1 5 4 . 2 10 Tactical Retreats 7 | . . . 1 1 2 1 . . . . . . . 2 Traps | -11 -10 -10 -9 -8 -7 -7 -7 -7 -5 -5 -5 -5 -4 -4 ------- Run | Yrd Mat Min Mat Mat Fac Sto Rec Scr Fac Upp Upp War Pro Fac Traps Triggered 2 | . 1 . . . . 1 . . . . . . . . Indirectly . | . . . . . . . . . . . . . . . Trap Hack Attempts . | . . . . . . . . . . . . . . . Triggered . | . . . . . . . . . . . . . . . Disarmed . | . . . . . . . . . . . . . . . Reprogrammed . | . . . . . . . . . . . . . . . Reused 1 | . . . . . . . . . . . . . . 1 Traps Extracted . | . . . . . . . . . . . . . . . Installed 1 | . . . . . . . . . . . . . . 1 Triggered 16 | . . . . . . . . . . . 1 14 . 1 Most Traps Carried 1 | . . . . . . . . 1 1 1 1 1 1 1 Machines | -11 -10 -10 -9 -8 -7 -7 -7 -7 -5 -5 -5 -5 -4 -4 ---------- Run | Yrd Mat Min Mat Mat Fac Sto Rec Scr Fac Upp Upp War Pro Fac Machines Disabled 10 | . . . . 4 . 1 . . . . . . . 5 Max in Single Turn 2 | . . . . 1 . 1 . . . . . . . 2 Machines Repaired . | . . . . . . . . . . . . . . . Machines Dismantled . | . . . . . . . . . . . . . . . Machines Sabotaged . | . . . . . . . . . . . . . . . Overloaded Fab Kills . | . . . . . . . . . . . . . . . Hacking | -11 -10 -10 -9 -8 -7 -7 -7 -7 -5 -5 -5 -5 -4 -4 --------- Run | Yrd Mat Min Mat Mat Fac Sto Rec Scr Fac Upp Upp War Pro Fac Machines Accessed 27 | . 2 . 2 2 2 4 1 2 2 1 . 7 . 2 Terminals 13 | . 2 . 2 2 . 4 1 . 2 . . . . . Fabricators . | . . . . . . . . . . . . . . . Repair Stations 1 | . . . . . 1 . . . . . . . . . Recycling Units 2 | . . . . . . . . . . . . . . 2 Scanalyzers 1 | . . . . . 1 . . . . . . . . . Garrison Access . | . . . . . . . . . . . . . . . Total Hacks 59 | . 5 . 7 9 2 8 1 2 6 1 . 15 . 3 Successful 35 | . 1 . 3 3 1 3 1 2 3 1 . 15 . 2 Failed 24 | . 4 . 4 6 1 5 . . 3 . . . . 1 Catastrophic 1 | . . . . . . 1 . . . . . . . . Database Lockouts . | . . . . . . . . . . . . . . . Manual 11 | . . . 1 2 . 2 . . 3 . . . . 3 Terminals 36 | . 5 . 7 9 . 8 1 . 6 . . . . . Fabricators . | . . . . . . . . . . . . . . . Repair Stations 1 | . . . . . 1 . . . . . . . . . Recycling Units 3 | . . . . . . . . . . . . . . 3 Scanalyzers 1 | . . . . . 1 . . . . . . . . . Garrison Access . | . . . . . . . . . . . . . . . Terminal Hacks 31 | . 1 . 3 3 . 2 1 2 3 1 . 15 . . Record 8 | . . . . . . . . 1 . . . 7 . . Robot Analysis 3 | . . . 1 1 . . . . 1 . . . . . Prototype ID Bank 7 | . . . . . . . . . . . . 7 . . Open Door 4 | . . . . . . 2 . . . 1 . 1 . . Branch Access Points 2 | . 1 . 1 . . . . . . . . . . . Terminal Index 2 | . . . . 1 . . . . 1 . . . . . Alert Level 1 | . . . . . . . . . 1 . . . . . Hauler Manifests 1 | . . . . . . . 1 . . . . . . . Zone Layout 2 | . . . 1 1 . . . . . . . . . . Derelict Proto ID Bank 1 | . . . . . . . . 1 . . . . . . Fabricator Hacks . | . . . . . . . . . . . . . . . Repair Station Hacks . | . . . . . . . . . . . . . . . Recycling Unit Hacks . | . . . . . . . . . . . . . . . Scanalyzer 1 | . . . . . 1 . . . . . . . . . Insert Component 1 | . . . . . 1 . . . . . . . . . Garrison Access Hacks . | . . . . . . . . . . . . . . . Unauthorized Hacks 3 | . . . . . . 1 . . . . . . . 2 Terminals 1 | . . . . . . 1 . . . . . . . . Disrupt 1 | . . . . . . 1 . . . . . . . . Fabricators . | . . . . . . . . . . . . . . . Repair Stations 2 | . . . . . . . . . . . . . . 2 Recycling Units . | . . . . . . . . . . . . . . . Scrapoids 2 | . . . . . . . . . . . . . . 2 Scanalyzers . | . . . . . . . . . . . . . . . Garrison Access . | . . . . . . . . . . . . . . . Data Cores Recovered . | . . . . . . . . . . . . . . . Used . | . . . . . . . . . . . . . . . Hacking Detections 11 | . 2 . 2 2 . 2 . . 2 . . . . 1 Full Trace Events 2 | . 1 . . . . 1 . . . . . . . . Feedback Events . | . . . . . . . . . . . . . . . Feedback Blocked . | . . . . . . . . . . . . . . . Robot Schematics Acquired . | . . . . . . . . . . . . . . . Robots Built . | . . . . . . . . . . . . . . . Authchips . | . . . . . . . . . . . . . . . Time . | . . . . . . . . . . . . . . . Total Robot Build Rating . | . . . . . . . . . . . . . . . Part Schematics Acquired . | . . . . . . . . . . . . . . . Parts Built . | . . . . . . . . . . . . . . . Authchips . | . . . . . . . . . . . . . . . Time . | . . . . . . . . . . . . . . . Total Part Build Rating . | . . . . . . . . . . . . . . . Parts Repaired . | . . . . . . . . . . . . . . . Time . | . . . . . . . . . . . . . . . Parts Recycled . | . . . . . . . . . . . . . . . Recycled Matter . | . . . . . . . . . . . . . . . Retrieved Matter . | . . . . . . . . . . . . . . . Retrieved Components . | . . . . . . . . . . . . . . . Parts Scanalyzed . | . . . . . . . . . . . . . . . Part Schematics Acquired . | . . . . . . . . . . . . . . . Parts Damaged . | . . . . . . . . . . . . . . . Bothacking | -11 -10 -10 -9 -8 -7 -7 -7 -7 -5 -5 -5 -5 -4 -4 ------------ Run | Yrd Mat Min Mat Mat Fac Sto Rec Scr Fac Upp Upp War Pro Fac Used RIF Installer . | . . . . . . . . . . . . . . . Robots Hacked . | . . . . . . . . . . . . . . . Non-combat . | . . . . . . . . . . . . . . . Combat . | . . . . . . . . . . . . . . . Robot Hacks Applied . | . . . . . . . . . . . . . . . Relay Couplers Released 4 | . . . . . . . . . . . . . . 4 Programmers 4 | . . . . . . . . . . . . . . 4 Fabnet Peak Effective % . | . . . . . . . . . . . . . . . Robots Rewired 3 | . . . . . . . 3 . . . . . . . Allies Hacked . | . . . . . . . . . . . . . . . Hacks Repelled . | . . . . . . . . . . . . . . . Allies | -11 -10 -10 -9 -8 -7 -7 -7 -7 -5 -5 -5 -5 -4 -4 -------- Run | Yrd Mat Min Mat Mat Fac Sto Rec Scr Fac Upp Upp War Pro Fac Total Allies 34 | . . . . . . 12 3 . . . . . 5 14 Largest Group 10 | . . . . . . 10 3 . . . . . 5 9 Highest-Rated Group 429 | . . . . . . 173 37 . . . . . 235 429 Highest-Rated Ally 50 | . . . . . . 31 20 . . . . . 47 50 Total Orders 6 | . . . . . . . 4 . . . . . 2 . ROAM 1 | . . . . . . . 1 . . . . . . . DROP 1 | . . . . . . . 1 . . . . . . . COLLECT 2 | . . . . . . . 2 . . . . . . . EXPLORE 2 | . . . . . . . . . . . . . 2 . Ally Attacks 339 | . . . . . . 150 1 . . . . . 76 112 Total Damage 5922 | . . . . . . 2055 33 . . . . . 1413 2421 Kills 39 | . . . . . . 11 . . . . . . 14 14 Allies Corrupted 3 | . . . . . . 1 . . . . . . . 2 Allies Melted 1 | . . . . . . 1 . . . . . . . . Intel | -11 -10 -10 -9 -8 -7 -7 -7 -7 -5 -5 -5 -5 -4 -4 ------- Run | Yrd Mat Min Mat Mat Fac Sto Rec Scr Fac Upp Upp War Pro Fac Robot Analysis Total 3 | . . . 1 1 . . . . 1 . . . . . Derelict Logs Recovered 5 | . . 2 . . . . . . . 1 1 . 1 . Drone Launches 4 | . . . . . . . . . . . . . 4 . Drone Recoveries 2 | . . . . . . . . . . . . . 2 . Exploration | -11 -10 -10 -9 -8 -7 -7 -7 -7 -5 -5 -5 -5 -4 -4 ------------- Run | Yrd Mat Min Mat Mat Fac Sto Rec Scr Fac Upp Upp War Pro Fac Turns Passed 12750 | . 361 133 830 1068 1049 1042 1111 1723 326 1269 876 1289 1030 643 Spaces Moved 5915 | 1 176 65 297 467 500 439 579 1071 200 520 339 675 354 232 Core 13 | . . . . . . 7 . . . . . . . 6 Treads 5098 | . . . 20 467 475 276 579 1071 200 520 330 675 354 131 Legs 519 | 1 176 65 277 . . . . . . . . . . . Wheels 285 | . . . . . 25 156 . . . . 9 . . 95 Hover . | . . . . . . . . . . . . . . . Flight . | . . . . . . . . . . . . . . . Fastest Speed 115 | 120 120 190 160 152 125 115 152 150 160 160 160 160 240 115 Average Speed 179 | 120 168 190 197 160 161 158 153 155 160 216 237 177 240 204 Slowest Speed 950 | 120 190 190 260 240 245 550 155 160 160 240 240 240 240 950 Overloaded Moves . | . . . . . . . . . . . . . . . Propulsion Burnouts . | . . . . . . . . . . . . . . . Robots Hopped . | . . . . . . . . . . . . . . . Cave-ins Triggered . | . . . . . . . . . . . . . . . Exploration Rate (%) 44 | 2 39 22 40 54 11 66 98 60 4 62 51 88 58 9 Regions Visited 14 Branch Regions 8 Pre-discovered Areas 1 | . . . . . . . . . . . . . 1 . Known Exits Taken 9 | . 1 . . 1 1 1 1 1 1 1 1 . . . Unknown Exits Taken 5 | 1 . 1 1 . . . . . . . . 1 1 . Scrap Searched 7 | . . . . . . . . 2 . 1 3 . 1 . Spaces Dug 11 | . . . . 5 . 6 . . . . . . . . Terrain Destroyed 213 | . . 12 . 63 67 6 1 . . 20 1 . . 43 Melee . | . . . . . . . . . . . . . . . Projectile 12 | . . . . . . . 1 . . 4 1 . . 6 AOE 201 | . . 12 . 63 67 6 . . . 16 . . . 37 Terrain Rammed . | . . . . . . . . . . . . . . . Walls Destroyed . | . . . . . . . . . . . . . . . Machines Disabled . | . . . . . . . . . . . . . . . Actions | -11 -10 -10 -9 -8 -7 -7 -7 -7 -5 -5 -5 -5 -4 -4 --------- Run | Yrd Mat Min Mat Mat Fac Sto Rec Scr Fac Upp Upp War Pro Fac Total 7496 | . 206 72 451 657 694 667 762 1110 203 640 402 758 531 343 Wait 960 | . 2 4 85 66 122 128 116 7 . 87 54 64 173 52 Move 5901 | . 175 64 296 466 499 438 578 1070 199 519 338 674 353 232 Hop . | . . . . . . . . . . . . . . . Pick Up 48 | . 4 . 8 12 6 3 1 5 . 2 . 6 . 1 Fast Attach 56 | . 4 . 7 8 4 13 3 5 2 2 1 1 2 4 Attach 59 | . 1 . 5 12 12 6 2 2 . 6 2 2 . 9 Detach 12 | . . . . 2 3 2 2 . . 3 . . . . Swap 16 | . . 1 1 7 2 2 . 2 . . . 1 . . Drop 40 | . 3 . 5 5 3 4 3 7 . 1 1 4 1 3 Fire 338 | . 17 1 43 77 43 71 19 . 2 18 6 . 1 40 Melee 22 | . . . . . . . . 12 . 2 . 6 1 1 Ram . | . . . . . . . . . . . . . . . Kick 3 | . . 2 1 . . . . . . . . . . . Crush 3 | . . . . 2 . . 1 . . . . . . . Escape Stasis . | . . . . . . . . . . . . . . . Rewire 37 | . . . . . . . 37 . . . . . . . Trap 1 | . . . . . . . . . . . . . . 1 Miscellaneous . | . . . . . . . . . . . . . . . Route ------- -11/Scrapyard -10/Materials (discovered 2 exits: *Mat / *Min) -10/Mines -9/Materials (discovered 2 exits: *Mat / *Min) -8/Materials -7/Factory (discovered 2 exits: *Sto x2) -7/Storage -7/Recycling (discovered 2 exits: *Fac / *Scr) -7/Scraptown -5/Factory -5/Upper Caves -5/Upper Caves -5/Warlord -4/Proximity Caves -4/Factory (discovered 1 exit: Res) History --------- Turn | Location | Event 1 | -11/Scrapyard | Discovered new exit (range 0) 1 | -11/Scrapyard | Entered Materials 213 | -10/Materials | Discovered new exit (range 3) 299 | -10/Materials | Identified exit to Mines 311 | -10/Materials | Build established: Mutant 362 | -10/Materials | Entered Mines 439 | -10/Mines | Learned Materials terminal intel 476 | -10/Mines | Discovered new exit (range 10) 495 | -10/Mines | Entered Materials 495 | -9/Materials | Evolved 2 slots: Power x1, Utility x1 496 | -9/Materials | Loaded intel: 12 terminal locations 734 | -9/Materials | Identified exit to Mines 1246 | -9/Materials | Discovered new exit (range 15) 1325 | -9/Materials | Entered another Materials area 1325 | -8/Materials | Evolved 2 slots: Propulsion x1, Utility x1 1590 | -8/Materials | Lost 5 parts (2p1u2w) 2338 | -8/Materials | Core integrity fell below 50% 2354 | -8/Materials | Found Prototype Device 2375 | -8/Materials | Lost 7 parts (1p3n1u2w) 2378 | -8/Materials | Discovered new exit (range 8) 2391 | -8/Materials | Identified exit to Factory 2393 | -8/Materials | Entered Factory 2393 | -7/Factory | Evolved 2 slots: Utility x2 2394 | -7/Factory | Identified exit to Storage 3104 | -7/Factory | Build established: Scavenger-Mutant 3322 | -7/Factory | Identified Active Sensor Suite 3423 | -7/Factory | Discovered exit to Storage (range 10) 3436 | -7/Factory | Lost 3 parts (1p1n1u) 3442 | -7/Factory | Entered Storage 3498 | -7/Storage | Met a pair of Derelict thieves 3602 | -7/Storage | Assisted by bots powering up and referring to "LRC-V3" 3707 | -7/Storage | Lost 12 allies 4095 | -7/Storage | Core integrity fell below 50% 4153 | -7/Storage | Lost 7 parts (1p4n1u1w) 4476 | -7/Storage | Used back door to open Recycling access 4476 | -7/Storage | Discovered new exit (range 5) 4481 | -7/Storage | Identified exit to Recycling 4484 | -7/Storage | Entered Recycling 5259 | -7/Recycling | Discovered new exit (range 5) 5559 | -7/Recycling | Scanned before Scraplab entrance 5581 | -7/Recycling | Entered Scraplab 5594 | -7/Recycling | Discovered new exit (range 2) 5594 | -7/Recycling | Identified exit to Scraptown 5595 | -7/Recycling | Entered Scraptown 5595 | -7/Scraptown | System corruption cleaned by C-Scrubber 5779 | -7/Scraptown | Visited UFD Registry 5779 | -7/Scraptown | Registered with UFD as "Hammerslasher" 5805 | -7/Scraptown | Visited Junk Repository 5907 | -7/Scraptown | Visited SPCMW 5924 | -7/Scraptown | Visited TADAMA 5928 | -7/Scraptown | Heard Great Nut preacher, LISTEN AND RECITE! 5951 | -7/Scraptown | Visited Red Mages 6036 | -7/Scraptown | Visited IN-MT5's Study 6056 | -7/Scraptown | Visited Fellowship of the Rings 6179 | -7/Scraptown | Build established: Mutant 6188 | -7/Scraptown | Visited Research Penetration Think Tank 6221 | -7/Scraptown | Visited Scrapoid Pod Storage 6228 | -7/Scraptown | Found Scrapoid Pod 6255 | -7/Scraptown | Visited Science Guys 6316 | -7/Scraptown | Visited Supply Room 6453 | -7/Scraptown | Visited Derelict Rescue Squad 6463 | -7/Scraptown | Found DRS Beacon 6571 | -7/Scraptown | Visited Science Testing Area 6647 | -7/Scraptown | Visited Junk Cannon Lab 6655 | -7/Scraptown | Found Prototype Special Weapon 6655 | -7/Scraptown | Identified Junk Cannon 6758 | -7/Scraptown | Visited Botcube Research 6767 | -7/Scraptown | Found Botcube 6797 | -7/Scraptown | Visited LU-1G1's Boring Crew 7305 | -7/Scraptown | Discovered new exit (range 5) 7316 | -7/Scraptown | Identified exit to Factory 7318 | -7/Scraptown | Entered Factory 7318 | -5/Factory | Evolved 4 slots: Utility x3, Weapon x1 7535 | -5/Factory | Discovered new exit (range 9) 7583 | -5/Factory | Identified exit to Upper Caves 7644 | -5/Factory | Entered Upper Caves 8033 | -5/Upper Caves | Encountered a Warlord checkpoint 8100 | -5/Upper Caves | P-70 Sage assimilated allied QM-BIU(g) 8102 | -5/Upper Caves | P-70 Sage assimilated allied BQ-Q9W(b) 8158 | -5/Upper Caves | System corruption reached 10% 8162 | -5/Upper Caves | Lost 3 parts (1p2u) 8468 | -5/Upper Caves | Identified exit to Upper Caves 8913 | -5/Upper Caves | Entered another Upper Caves area 8914 | -5/Upper Caves | Encountered a Warlord checkpoint 9676 | -5/Upper Caves | Identified exit to Warlord 9789 | -5/Upper Caves | Entered Warlord 9847 | -5/Warlord | System corruption cleaned by Quarantine Array 10001 | -5/Warlord | Learned Testing trap positions 10004 | -5/Warlord | Learned Factory garrison access intel 10189 | -5/Warlord | Warlord's base attacked by MAIN.C 10491 | -5/Warlord | Rebuked by Warlord 10539 | -5/Warlord | Warlord forces counterattacked 10683 | -5/Warlord | Met EX-DEC 10691 | -5/Warlord | Found Prototype Launcher 10693 | -5/Warlord | Found Prototype Energy Cannon 10696 | -5/Warlord | Found Prototype Energy Cannon 10699 | -5/Warlord | Found Prototype Energy Cannon 10701 | -5/Warlord | Found Prototype Energy Cannon 10710 | -5/Warlord | Identified Vortex Cannon (x2) 10712 | -5/Warlord | Identified Vortex Driver (x2) 10718 | -5/Warlord | Found Prototype Energy Cannon 10864 | -5/Warlord | Warlord base infiltrated, sounded retreat 11037 | -5/Warlord | Lost 8 allies 11058 | -5/Warlord | Discovered new exit (range 9) 11078 | -5/Warlord | Entered Proximity Caves 11079 | -4/Proximity Caves | Scrapoid Pod released 04P05-D (x5) 11394 | -4/Proximity Caves | Build established: Scavenger-Mutant 11570 | -4/Proximity Caves | Spotted B-86 Titan 11870 | -4/Proximity Caves | Allies destroyed B-86 Titan 12082 | -4/Proximity Caves | Discovered new exit (range 7) 12108 | -4/Proximity Caves | Entered Factory 12108 | -4/Factory | Accompanied by 4 allies 12108 | -4/Factory | Evolved 2 slots: Weapon x2 12109 | -4/Factory | Identified exit to Research 12110 | -4/Factory | Loaded intel: 4 garrison access locations 12364 | -4/Factory | Lost 4 allies 12399 | -4/Factory | Spotted B-86 Titan 12471 | -4/Factory | Identified Vortex Catalyst Activator 12509 | -4/Factory | Destroyed B-86 Titan 12512 | -4/Factory | Core integrity fell below 50% 12534 | -4/Factory | Garrison activated, responded to threat 12552 | -4/Factory | Lost 16 parts (3p4n4u5w) 12576 | -4/Factory | Core integrity fell below 20% 12676 | -4/Factory | Scrapoids reinforcements arrived? 12697 | -4/Factory | Scrapoids reinforcements arrived? 12701 | -4/Factory | P-70 Sage assimilated allied QM-TTY(g) 12721 | -4/Factory | Garrison activated, responded to threat 12723 | -4/Factory | Botcube activated 12733 | -4/Factory | Botcube completed mutation into legged form, armed with 1 gun. 12751 | -4/Factory | Destroyed by G-67 Veteran with Plasma Rifle Last Messages --------------- 12739_ Mutated Botcube suffers critical hit (Burn). 12739_ K-01 Serf collects debris. 12741_ System corrupted: Energy discharge (-59). 12741_ R-10 Processor collects Field Laser. 12741_ U-05 Engineer repairs door. 12742_ K-01 Serf collects debris. 12744_ Acquired 15 matter. 12745_ U-05 Engineer builds a Wall. 12745_ Slug penetrates Mutated Botcube. 12746_ K-01 Serf collects debris. 12746_ ALERT: Hostiles spotted, dispatching reinforcements to Terminal F007. 12747_ Lgt. Antimatter Reactor destroyed. 12747_ K-01 Serf collects debris. 12748_ R-10 Processor collects Lgt. Antimatter Reactor. 12749_ K-01 Serf destroyed. 12749_ K-01 Serf collects debris. 12749_ Mutated Botcube destroyed. 12749_ K-01 Serf collects debris. Map ----- +----------------------------------------------------+ | ?????????????????????????????????????????????????? | | ?????????????????????????????????????????????????? | | ?????????????????????????????????????????????????? | | ?????????????????????????????????????????????????? | | ????????????????????????????????????????????""G""? | | ????????????????????????????????????????????""?""? | | ?????????????????????????????????????????????????? | | ?????????????????????????????????????????????????? | | ??????????????????????????????????!! ????????????? | | ????????????????????????????????? !! ??????????? | | ????????????????????????????????? ????????? | | ????????????????????????????????? ???????? | | ????????????????????????????????"""""""""????????? | | ??????????????????????????????? w ?????????? | | ??????????????????????????????? ???????????? | | ?????????????????????????????? ????????????? | | ?????????????##########??????? #?????????????? | | ?????????????# #??????#% *g #?????????????? | | ?????????????#""" #???#### %[! #?????????????? | | ?????????????#""" ########R&%[ #?????????????? | | ?????????????#""" # !!|h=[![ #?????????????? | | ?????????????# # *%== #?????????????? | | ?????????????# #*[= u!= #?????????????? | | ?????????????# +%!%! #?????????????? | | ?????????????# #==%= #?????????????? | | ?????????????# ! #*u@ g########?????????????? | | ????????############### u#????????????????????? | | ????????# u ###??????????????????? | | ????????# %!% #??????????????????? | | ????????# == #??????????????????? | | ????????# u u #########????????????? | | ????????# !! # ????????????? | | ????????# =|% u # ????????????? | | ????????# =%==% # " #??????????? | | ????????# *!!% [= # #??????????? | | ????????# """" ""[*!!% + #??????????? | | ????????# """" """% ** # " #??????????? | | ????????+ """" ""!!%!|g # #??????????? | | ????????# """" """%==g[ u# #??????????? | | ????????# """" " k!%%g!g ###########??????????? | | ????????#^ """" =p%k*[! # " #????????????? | | ######### """" *[% # #??????????????? | | # % *% %w # #???????????????? | | # "" # "#????????????????? | | # # #???????????? | | # # """" #???????????? | | # " # """??????????????? | | # " #?? """??????????????? | | ?# % % """ #????""??????????????? | | ?# %= = """ + ???????????????????? | +----------------------------------------------------+ Best States ------------- Heat Dissipation 88 Coolant Potential 50 Energy Generation 36 Energy Capacity 430 Matter Stores 300 Matter Capacity 300 Sight Range 20 Robot Scan Range 15 Terrain Scan Density 10 Jamming Range 12 Base Temperature (-) 100 Armor Coverage 450 Resistance: KI 30 Weapon Shielding 66 Evasion (%) 55 Targeting Accuracy 8 Recoil Reduction 3 Offensive Hacking 14 Item Schematics ----------------- None Robot Schematics ------------------ None Fabricated ------------ Nothing Alien Tech Used ----------------- None Achievements -------------- None Challenges ------------ None Game ------ Seed ChargeDataGun Manual? 0 Play Time 01:10:20 Cumulative 122.2 hours Start 2024.09.02 @ 18:24:23 End 2024.09.02 @ 19:51:43 Sessions 1 Manual Loads 0 Difficulty Rogue Special Mode None Game No. 199 Rogue 198 Adventurer 1 Explorer 0 Win Type - Total 1 Types 1/0/0/0/0/0/0/0/0 Lore% 63 Gallery% 66 Achievement% 50 Wizard Run 0 Options --------- Layout 1 ASCII 0 Keyboard 0 Movement Mouse Keybinds 0 Fullscreen 2 Font 20/SmallcapsGlow Map View 54x42 Zoom Use 0% Tactical HUD 1 Map Filters NONE Filters NONE Steam 0 RUN: 68febf12-f146-41a9-a4aa-2bbfad69e316